Cogmind - Beta 15 @@@ ROGUE MODE // 2025.06.08 @ 22:48:19 Player: 7604 Result: Destroyed by S-27 Virus with Autogun Performance ------------- Evolutions (5) 2500 Regions Visited (14) 2800 Robots Destroyed (109) 545 Value Destroyed (3376) 3376 Prototype IDs (62) 1240 Alien Tech Used (0) 0 Bonus (4094) 4094 TOTAL SCORE: 14555 Bonus ------- High Alert Combat Kills 18 Follower Combat Kills 37 Delivered SUBCON Basin 2000 Registered with UFD 300 Met Optimus in HQ 500 Met Imprinter 300 Destroyed Z-Imprinter 1000 Friendly Fire -61 Cogmind --------- Core Integrity 0/1000 Matter 262/300 Energy 50/100 System Corruption 15% Temperature Cool (0) Movement Flying (32) Location -5/Extension Parts ------- > --- POWER (1) -------- (None) > --- PROPULSION (5) --- Cooled Nuclear Pulse Thruster Cooled Nuclear Pulse Thruster > --- UTILITY (9) ------ Structural Scanner Improved Core Shielding Improved Core Shielding Makeshift Hacking Suite Makeshift Hacking Suite Tech Extrapolator > --- WEAPON (2) ------- Chainsword > --- INVENTORY (5) ---- Improved Treads Zionite Biocell (600) Chainsword Chainsword Peak State ------------ > --- POWER ------------ Light Neutrino Core > --- PROPULSION ------- Cooled Nuclear Pulse Thruster Cooled Nuclear Pulse Thruster Cooled Nuclear Pulse Thruster Cooled Nuclear Pulse Thruster Cooled Nuclear Pulse Thruster > --- UTILITY ---------- Medium Storage Unit Experimental Optical Array IFF Parser Improved Transmission Jammer Improved Propulsion Shielding Experimental Thermal Shield Makeshift Hacking Suite Makeshift Hacking Suite Tech Extrapolator > --- WEAPON ----------- Hypervelocity Gauss Cannon Heavy Pick > --- INVENTORY -------- Zionite Light DM Reactor Shield Leg Cooled Nuclear Pulse Thruster Zionite Biocell Powered Armor Zionite Laser-S Heavy Rocket Launcher [Rating: 103] Favorites ----------- Power Subdweller Power Source Engine Subdweller Power Source Power Core Backup Power VII Reactor Zionite Light DM Reactor Propulsion Light Treads Treads Light Treads Leg Aluminum Leg Wheel Armored Wheel Flight Unit Nuclear Pulse Thruster Utility Huge Storage Unit Device Seismic Detector Storage Huge Storage Unit Processor Tech Extrapolator Hackware Improved Hacking Suite Protection Makeshift Thermal Plating Weapon Subdweller Machine Gun Energy Gun Subdweller Laser Energy Cannon Cooled Particle Cannon Ballistic Gun Subdweller Machine Gun Ballistic Cannon Hypervelocity Gauss Cannon Launcher Precision Grenade Launcher Special Weapon Plasma Flamer Slashing Weapon Chainsword Piercing Weapon Spear Special Melee Weapon Datajack Build | -11 -10 -10 -9 -9 -6 -6 -6 -6 -6 -6 -6 -5 -5 -5 ------- Run | Yrd Mat Sub Rec Scr Fac Was Fac Low Low Zio Dee Pro Fac Ext Slots Evolved 10 | . . . . . 8 . . . . . . . 2 . Power . | . . . . . . . . . . . . . . . Propulsion 3 | . . . . . 3 . . . . . . . . . Utility 7 | . . . . . 5 . . . . . . . 2 . Weapon . | . . . . . . . . . . . . . . . Parts Attached 162 | 2 11 10 2 6 49 . 19 1 1 9 14 . 24 14 Power 15 | . . 2 . 1 3 . 3 . . . 1 . 4 1 Engine 5 | . . 2 . 1 1 . 1 . . . . . . . Core 8 | . . . . . 2 . 2 . . . . . 3 1 Reactor 2 | . . . . . . . . . . . 1 . 1 . Propulsion 40 | . 2 2 . 3 17 . 4 . . 1 1 . 6 4 Treads 16 | . 2 2 . 3 5 . . . . 1 . . . 3 Leg 1 | . . . . . . . . . . . 1 . . . Wheel 5 | . . . . . 5 . . . . . . . . . Hover . | . . . . . . . . . . . . . . . Flight 18 | . . . . . 7 . 4 . . . . . 6 1 Utility 67 | 1 4 3 . . 19 . 9 1 1 4 10 . 9 6 Device 23 | 1 . 2 . . 8 . 2 1 . . 2 . 4 3 Storage 7 | . 2 . . . 1 . 2 . . . 1 . 1 . Processor 5 | . . . . . 2 . 1 . . 2 . . . . Hackware 8 | . . . . . 2 . 2 . 1 1 1 . 1 . Protection 24 | . 2 1 . . 6 . 2 . . 1 6 . 3 3 Artifact . | . . . . . . . . . . . . . . . Weapon 40 | 1 5 3 2 2 10 . 3 . . 4 2 . 5 3 Energy Gun 12 | . 2 2 1 . 5 . . . . . 1 . 1 . Energy Cannon 3 | . . . . . 1 . . . . . 1 . 1 . Ballistic Gun 8 | 1 1 1 1 . 2 . . . . . . . 1 1 Ballistic Cannon 2 | . . . . . . . 1 . . . . . 1 . Launcher 3 | . 1 . . . 1 . . . . . . . 1 . Special Weapon 5 | . 1 . . . 1 . . . . 2 . . . 1 Impact Weapon . | . . . . . . . . . . . . . . . Slashing Weapon 2 | . . . . . . . . . . 1 . . . 1 Piercing Weapon 2 | . . . . 1 . . 1 . . . . . . . Special Melee Weapon 3 | . . . . 1 . . 1 . . 1 . . . . Unidentified Prototypes 23 | . . . . . 4 . 5 . . 3 6 . 5 . Parts Lost 64 | . 2 4 . . 9 . 6 . . . 12 . 15 16 Power 9 | . . 2 . . . . 1 . . . 1 . 3 2 Propulsion 18 | . . 2 . . 5 . 2 . . . 3 . 1 5 Utility 27 | . . . . . 3 . 3 . . . 7 . 8 6 Weapon 10 | . 2 . . . 1 . . . . . 1 . 3 3 Highest Loss Streak 7 | . 1 2 . . 2 . 2 . . . 7 . 4 7 To Critical Strikes 1 | . . 1 . . . . . . . . . . . . Average Backups 13 | 6 10 9 11 19 19 7 8 8 8 9 9 10 9 6 Power 1 | 1 1 2 2 1 1 1 . 1 1 1 1 1 . . Propulsion 2 | 4 1 1 . 2 2 . . 1 1 1 1 . 1 2 Utility 5 | . 4 4 5 7 6 2 3 3 3 3 3 6 3 1 Weapon 3 | 1 1 1 2 5 4 1 1 2 2 1 1 1 2 1 Tool/Special . | . . . . . . . . . . . . . . . Unused Backups 31 | . 7 6 . 1 6 . 1 1 . . . . 5 4 Power 7 | . 1 3 . 1 1 . . . . . . . 1 . Propulsion 9 | . 4 . . . 1 . 1 . . . . . 1 2 Utility 10 | . 1 3 . . 2 . . 1 . . . . 3 . Weapon 3 | . 1 . . . . . . . . . . . . 2 Tool/Special 2 | . . . . . 2 . . . . . . . . . Average Slot Usage (%) 95 | . 99 99 100 93 96 86 88 100 100 94 90 93 95 84 Engine 9 | . 14 13 14 14 4 . . . . . . . . . Core 1 | . . . . . 1 6 6 6 6 6 3 6 2 4 Treads 19 | . 26 27 28 28 13 . . . . 4 4 . . . Wheel 1 | . . . . . 9 . . . . . . . . . Flight 8 | . . . . . 9 33 30 33 33 27 23 26 28 24 Device 7 | . 10 12 9 . 16 13 13 11 12 1 2 13 14 13 Storage 10 | . 14 14 14 14 6 6 6 6 6 6 6 6 5 4 Processor 3 | . . . . . 4 6 6 6 6 12 13 13 11 10 Hackware 3 | . . . . . 1 13 14 20 20 14 7 13 15 11 Protection 8 | . 3 1 4 14 15 . . . . 5 10 . 1 4 Energy Gun 3 | . 4 18 10 . 1 . . . . . 1 . . . Ballistic Gun 8 | . 22 8 17 10 . . . . . . . . . . Piercing Weapon 2 | . . . . 3 4 6 6 6 6 3 1 6 4 2 Special Melee Weapon 3 | . . . . 8 . . . . . 2 . 5 2 . Peak Build Rating 103 | 8 9 32 32 22 68 54 72 73 74 84 85 75 103 89 Average Rating 37 | 6 8 27 17 18 51 53 58 72 73 81 77 70 88 76 On Entrance 48 | 6 8 8 30 16 22 52 54 69 73 74 81 75 71 88 Naked Turns . | . . . . . . . . . . . . . . . Heaviest Build 156 | 14 90 97 97 96 156 21 24 24 21 34 54 24 30 29 Greatest Support 74 | 20 40 40 40 40 74 30 30 29 29 30 30 23 42 30 Greatest Overweight (x) 10 | . 2 2 2 2 10 . . . . 1 1 1 8 2 Average Overweight (x) . | . . 2 2 2 1 . . . . . . . . . Largest Inventory Capacity 25 | 8 25 25 25 25 25 10 10 10 10 10 10 10 10 10 Average Capacity 19 | 8 16 25 25 25 20 10 10 10 10 10 10 10 10 9 Most Carried 25 | 8 15 25 25 25 25 10 10 10 10 10 10 10 10 10 Average Carried 16 | 6 10 24 15 20 20 9 9 9 10 9 9 9 9 7 Final Capacity 25 | 8 25 25 25 25 10 10 10 10 10 10 10 10 10 5 Final Carried 25 | 8 13 25 16 24 7 10 10 10 10 10 10 10 10 4 Class Distribution -------------------- 64% | Mutant 16% | Hacker-Sprinter 9% | Scavenger-Mutant 6% | Hacker-Mutant Dominant Class ---------------- Mutant | -10/Materials Mutant | -10/Subcaves Mutant | -9/Recycling Mutant | -9/Scraptown Scavenger-Mutant | -6/Factory Hacker-Sprinter | -6/Waste Hacker-Sprinter | -6/Factory Hacker-Sprinter | -6/Lower Caves Hacker-Sprinter | -6/Lower Caves Hacker-Mutant | -6/Zion Mutant | -6/Deep Caves Hacker-Sprinter | -5/Proximity Caves Hacker-Sprinter | -5/Factory Hacker-Sprinter | -5/Extension Resources | -11 -10 -10 -9 -9 -6 -6 -6 -6 -6 -6 -6 -5 -5 -5 ----------- Run | Yrd Mat Sub Rec Scr Fac Was Fac Low Low Zio Dee Pro Fac Ext Matter Collected 4231 | 213 444 343 72 50 1004 . 180 154 164 120 332 . 678 477 Remotely . | . . . . . . . . . . . . . . . Salvage Created 4450 | 23 611 142 177 . 1501 . 151 . . . 133 . 962 750 Parts 269 | 4 42 13 9 . 96 . 8 . . . 7 . 45 45 Haulers Intercepted 5 | . 1 . . . 2 . . . . . . . . 2 Recyclers Shooed 5 | 1 . . . . 3 . . . . . . . 1 . Parts Field Recycled . | . . . . . . . . . . . . . . . Retrieved Matter . | . . . . . . . . . . . . . . . Parts Self-Destructed 21 | . . 21 . . . . . . . . . . . . Prevented . | . . . . . . . . . . . . . . . Kills | -11 -10 -10 -9 -9 -6 -6 -6 -6 -6 -6 -6 -5 -5 -5 ------- Run | Yrd Mat Sub Rec Scr Fac Was Fac Low Low Zio Dee Pro Fac Ext Combat Hostiles Destroyed 70 | . 17 6 2 . 22 . . . . . 5 . 10 8 Melee 8 | . . . . . 7 . . . . . . . 1 . Guns 26 | . 14 3 2 . 3 . . . . . . . 1 3 Cannons 7 | . . . . . 5 . . . . . . . 2 . AOE 29 | . 3 3 . . 7 . . . . . 5 . 6 5 Classes Destroyed 19 | 1 7 3 1 . 3 . . . . . 2 . 1 1 Worker 1 | . 1 . . . . . . . . . . . . . Builder 5 | . . . . . 3 . . . . . . . . 2 Tunneler 7 | 1 . . . . . . . . . . . . 3 3 Hauler 5 | . 1 . . . 2 . . . . . . . . 2 Recycler 9 | . 1 . 1 . 2 . 1 . . . . . 4 . Operator 6 | . 1 . . . 1 . 1 . . . . . 3 . Turret 2 | . . 2 . . . . . . . . . . . . Watcher 6 | . 2 . . . 3 . 1 . . . . . . . Swarmer 19 | . 9 3 . . 7 . . . . . . . . . Grunt 16 | . 8 . . . 3 . . . . . . . 3 2 Duelist 1 | . . . . . 1 . . . . . . . . . Sentry 9 | . . . 2 . 3 . . . . . . . 1 3 Hunter 2 | . . . . . . . . . . . . . 2 . Programmer 12 | . . . . . 8 . . . . . . . 4 . Artisan 1 | . . 1 . . . . . . . . . . . . Subdweller 3 | . . 3 . . . . . . . . . . . . Z-Technician 1 | . . . . . . . . . . . 1 . . . Z-Light 2 | . . . . . . . . . . . 2 . . . Assembled 2 | . . . . . . . . . . . 2 . . . Thug 1 | . . . . . . . . . . . . . . 1 Savage 1 | . . . . . . . . . . . . . . 1 Butcher 1 | . . . . . . . . . . . . . . 1 Best Kill Streak 9 | 1 5 3 2 . 5 . 1 . . . 2 . 9 6 Combat Bots Only 8 | . 3 3 1 . 5 . . . . . 2 . 8 6 Max Kills in Single Turn 3 | 1 2 2 1 . 2 . 1 . . . 1 . 3 2 Gunslinging 1 | . 1 . . . . . . . . . . . . . Exploded 3 | . 2 2 . . 2 . . . . . 1 . 3 2 Melee 1 | . . . . . 1 . . . . . . . 1 . Uniques/NPCs Destroyed 1 | . . . . . . . . . . . 1 . . . Z-Imprinter (-6/Deep Caves) Combat | -11 -10 -10 -9 -9 -6 -6 -6 -6 -6 -6 -6 -5 -5 -5 -------- Run | Yrd Mat Sub Rec Scr Fac Was Fac Low Low Zio Dee Pro Fac Ext Hostile Shots Fired 1150 | . 104 92 20 3 337 . 91 5 6 . 136 2 195 159 Missed 459 | . 22 40 3 . 135 . 61 2 3 . 45 1 86 61 Hits 691 | . 82 52 17 3 202 . 30 3 3 . 91 1 109 98 Melee 1 | . . . . . . . . . . . 1 . . . Projectile 690 | . 82 52 17 3 202 . 30 3 3 . 90 1 109 98 AOE 4 | . . . . . . . . . . . . . 4 . Critical Strikes 20 | . . 1 2 1 4 . . . . . 1 . 7 4 Damage Taken 10535 | . 813 435 231 61 2038 . 351 59 16 . 2356 18 2172 1985 Core 1703 | . 104 63 12 . 161 . 41 22 6 . 286 . 541 467 Absorbed by Shields 195 | . . . . . 70 . . . . . . . 97 28 Redirected to Shielding 456 | . . . . . . . . . . . 171 . 112 173 Ignored by Resistances 613 | . . 25 18 9 157 . . . . . 252 . 96 56 Regen/Repaired (Parts) 697 | . 80 . . . 218 . 23 . . 307 . . 69 . Core Remaining (%) 55 | 100 . . . 28 . . . . . . . 39 . . Volleys Fired 303 | 2 90 32 11 . 51 . 8 . . . 45 3 36 25 Largest 2 | 2 2 2 2 . 2 . 1 . . . 2 1 1 1 Hottest 150 | 40 100 100 90 . 105 . 44 . . . 150 60 51 39 Shots Fired 425 | 4 168 52 20 . 64 . 8 . . . 48 3 34 24 Gun 329 | 4 165 48 20 . 40 . . . . . 16 3 12 21 Cannon 50 | . . . . . 17 . 8 . . . 15 . 10 . Launcher 39 | . 2 4 . . 7 . . . . . 11 . 12 3 Special 7 | . 1 . . . . . . . . . 6 . . . Kinetic 244 | 4 153 16 11 . 9 . 8 . . . . . 22 21 Thermal 111 | . 13 32 9 . 17 . . . . . 37 3 . . Explosive 39 | . 2 4 . . 7 . . . . . 11 . 12 3 Electromagnetic 31 | . . . . . 31 . . . . . . . . . Robot Hit Streak 13 | 2 13 13 7 . 9 . . . . . 6 . 6 9 Robot Miss Streak 5 | 1 4 2 1 . 3 . . . . . 5 . 3 2 Penetration Max 1 | . . . . . . . . . . . . . 1 . Secondary Targets 1 | . 1 . . . . . . . . . . . . . Max Gunslinging Chain 1 | . 1 . . . . . . . . . . . . . Shots Hit Robots 347 | 2 108 35 16 2 88 . 3 . . 2 14 . 39 38 Core Hits 195 | 1 44 15 5 . 47 . 2 . . . 21 . 27 33 Critical Kills 7 | . . . 1 . . . . . . . . . 3 3 Critical Parts Destroyed 5 | . . 1 . . . . . . . . . . 3 1 Critical Strikes 27 | . . 2 1 . 5 . . . . . . . 9 10 Destroy 15 | . . 2 1 . . . . . . . . . 6 6 Sever 1 | . . . . . . . . . . . . . . 1 Impale 11 | . . . . . 5 . . . . . . . 3 3 Melee Attacks 274 | . . . . 2 124 . 30 3 4 2 13 5 63 28 Impact . | . . . . . . . . . . . . . . . Slashing 11 | . . . . . . . . . . . . . . 11 Piercing 254 | . . . . . 122 . 30 3 4 . 13 5 60 17 Sneak Attacks 43 | . . . . 2 16 . 2 . . 2 2 . 9 10 Combat Hostiles 1 | . . . . . . . . . . . . . . 1 Follow-up Attacks . | . . . . . . . . . . . . . . . Damage Inflicted 11766 | 22 1237 890 350 . 3333 . 228 . . . 1274 . 2482 1950 Guns 3098 | 22 1104 682 347 . 430 . . . . . 28 . 351 134 Cannons 753 | . . . . . 619 . . . . . 35 . 99 . Explosions 3466 | . 130 208 . . 422 . . . . . 911 . 1159 636 Melee 4404 | . . . . . 1862 . 228 . . . 261 . 873 1180 Ramming 6 | . 3 . 3 . . . . . . . . . . . Kinetic 2180 | 22 993 261 214 . 106 . . . . . . . 450 134 Thermal 1610 | . 111 421 133 . 619 . . . . . 326 . . . Explosive 3242 | . 130 208 . . 422 . . . . . 687 . 1159 636 Electromagnetic 324 | . . . . . 324 . . . . . . . . . Impact . | . . . . . . . . . . . . . . . Slashing 329 | . . . . . . . . . . . . . . 329 Piercing 4075 | . . . . . 1862 . 228 . . . 261 . 873 851 Highest Corruption 15 | . . . . . 8 10 10 7 7 7 . . 12 15 Average Corruption 5 | . . . . . 2 6 8 7 7 7 . . 6 12 Corruption Purged 10 | . . . . . 7 . 3 . . . . . . . Corruption Blocked . | . . . . . . . . . . . . . . . Effects 122 | . . . . . 38 1 23 7 1 . . . 22 30 Message Errors 24 | . . . . . 10 . 3 2 . . . . 4 5 Matter Fused 32 | . . . . . 12 . 5 2 . . . . 5 8 Heat Flow Errors 18 | . . . . . 6 . 4 2 . . . . 4 2 Energy Discharges 20 | . . . . . 7 . 4 1 1 . . . 3 4 Parts Rejected 1 | . . . . . . 1 . . . . . . . . Parts Fused 1 | . . . . . . . 1 . . . . . . . Data Loss (minor) 13 | . . . . . 1 . 3 . . . . . 3 6 Data Loss (major) 3 | . . . . . 1 . 2 . . . . . . . Misfires 1 | . . . . . 1 . . . . . . . . . Alerts 1 | . . . . . . . . . . . . . . 1 Misdirections 5 | . . . . . . . 1 . . . . . 1 3 Weapon Failures 3 | . . . . . . . . . . . . . 2 1 Overload Shots 12 | . . . . . 12 . . . . . . . . . Overflow Damage 722 | . . 33 . . 170 . 57 . . . 47 . 368 47 Projectiles 15 | . . . . . 15 . . . . . . . . . Explosions 117 | . . 33 . . 50 . . . . . . . 34 . Melee 590 | . . . . . 105 . 57 . . . 47 . 334 47 Knockbacks . | . . . . . . . . . . . . . . . Impact . | . . . . . . . . . . . . . . . Kinetic . | . . . . . . . . . . . . . . . Secondary . | . . . . . . . . . . . . . . . Self-Inflicted Damage 171 | . . . . . 31 . . . . . 78 . . 62 Shots 6 | . . . . . 1 . . . . . 4 . . 1 Rammed 2 | . 1 . 1 . . . . . . . . . . . Targets Rammed 2 | . 1 . 1 . . . . . . . . . . . Kicked . | . . . . . . . . . . . . . . . Crushed . | . . . . . . . . . . . . . . . Highest Temperature 294 | . 123 28 189 31 238 6 239 196 . 269 294 30 222 96 Average Temperature 55 | . 24 16 68 31 47 2 96 86 . 93 84 16 45 51 Received Heat Transfer 2528 | . 270 240 117 61 430 . 24 30 . . 720 . 231 405 Effects 1 | . . . . . . . 1 . . . . . . . Energy Bleed 1 | . . . . . . . 1 . . . . . . . Siege Activations . | . . . . . . . . . . . . . . . Martial Activations . | . . . . . . . . . . . . . . . Shielding Activations . | . . . . . . . . . . . . . . . Robots Disrupted . | . . . . . . . . . . . . . . . Combat Hostiles . | . . . . . . . . . . . . . . . Robots Corrupted . | . . . . . . . . . . . . . . . Combat Hostiles . | . . . . . . . . . . . . . . . Parts Fried 1 | . . . . . 1 . . . . . . . . . Impact Corruptions . | . . . . . . . . . . . . . . . Robots Melted . | . . . . . . . . . . . . . . . Combat Hostiles . | . . . . . . . . . . . . . . . Parts Melted 1 | . . . . . 1 . . . . . . . . . Heat Transferred 1793 | . 250 575 150 . 561 . . . . . 257 . . . Parts Sabotaged . | . . . . . . . . . . . . . . . Parts Stolen . | . . . . . . . . . . . . . . . Parts Stripped . | . . . . . . . . . . . . . . . Power Chain Reactions 1 | . . . . . . . . . . . 1 . . . Alert | -11 -10 -10 -9 -9 -6 -6 -6 -6 -6 -6 -6 -5 -5 -5 ------- Run | Yrd Mat Sub Rec Scr Fac Was Fac Low Low Zio Dee Pro Fac Ext Maximum Alert Level 2 | . . . . . 2 . 1 . . . . . 1 . Low Security (%) 93 | 100 100 . 100 . 86 100 96 . . . . . 82 100 Level 1 3 | . . . . . 4 . 3 . . . . . 17 . Level 2 2 | . . . . . 9 . . . . . . . . . Level 3 . | . . . . . . . . . . . . . . . Level 4 . | . . . . . . . . . . . . . . . Level 5 . | . . . . . . . . . . . . . . . High Security . | . . . . . . . . . . . . . . . Max Security . | . . . . . . . . . . . . . . . Peak Influence 620 | 5 158 . 31 . 620 161 227 . . . . . 292 182 Initial 161 | . . . . . . 161 105 . . . . . . 112 Average 63 | 3 49 . 4 . 101 156 109 . . . . . 73 77 Influence Increases 4154 | 5 553 245 165 . 1298 . 468 60 75 . . . 768 517 Destroy 0b10 Robot/C 1280 | . 340 100 40 . 440 . . . . . . . 200 160 Destroy 0b10 Robot/NC 195 | 5 30 . 5 . 55 . 15 . . . . . 50 35 Destroy Leader 268 | . 66 10 . . 140 . 2 . . . . . 50 . Successful Hack 285 | . 25 . 29 . 76 . 92 . . . . . 58 5 Select Force Hacks 200 | . 60 . 90 . . . . . . . . . 50 . Disable Machine 30 | . . . . . 15 . 15 . . . . . . . Destroy Structure 336 | . 17 . 1 . 77 . 29 . . . . . 150 62 Partial Spotted 225 | . . . . . 75 . 60 . . . . . 75 15 Lose Combat Pursuer 1335 | . 15 135 . . 420 . 255 60 75 . . . 135 240 Influence Decreases 3982 | 5 410 388 165 . 838 309 408 169 91 86 . . 538 575 Entered New Map 719 | . . 70 . . . 299 46 79 21 86 . . . 118 Time Decay 2359 | 5 390 298 165 . 454 10 302 90 70 . . . 318 257 Search Patrol Dispatched 150 | . . . . . 150 . . . . . . . . . Lost Part 476 | . 20 20 . . 84 . 60 . . . . . 132 160 Lost Ally 50 | . . . . . . . . . . . . . 10 40 Purge Threat 228 | . . . . . 150 . . . . . . . 78 . Squads Dispatched 54 | . 3 . . . 19 . 16 . . . . . 14 2 Investigation 33 | . 2 . . . 9 . 12 . . . . . 9 1 Extermination 11 | . . . . . 7 . 2 . . . . . 2 . Reinforcement 10 | . 1 . . . 3 . 2 . . . . . 3 1 Assault . | . . . . . . . . . . . . . . . Garrison . | . . . . . . . . . . . . . . . Intercept . | . . . . . . . . . . . . . . . Searches Triggered 1 | . . . . . 1 . . . . . . . . . Construction Impeded . | . . . . . . . . . . . . . . . Haulers Reinforced 1 | . . . . . 1 . . . . . . . . . Active Scanning Responses . | . . . . . . . . . . . . . . . Cargo Convoy Interrupts . | . . . . . . . . . . . . . . . Stealth | -11 -10 -10 -9 -9 -6 -6 -6 -6 -6 -6 -6 -5 -5 -5 --------- Run | Yrd Mat Sub Rec Scr Fac Was Fac Low Low Zio Dee Pro Fac Ext Distress Signals 11 | . 3 . . . 3 . 1 . . . . . 2 2 Communications Jammed 14 | . . . . . . . . . . . . . 14 . Distress Signals 6 | . . . . . . . . . . . . . 6 . Times Spotted 223 | . 34 10 2 4 55 4 16 4 5 . 17 5 33 34 Peak Tracking Total 12 | . 4 3 1 4 8 4 6 4 6 . 5 5 10 12 Tactical Retreats 36 | . 1 2 . . 12 . 9 1 2 . 2 . 4 3 Traps | -11 -10 -10 -9 -9 -6 -6 -6 -6 -6 -6 -6 -5 -5 -5 ------- Run | Yrd Mat Sub Rec Scr Fac Was Fac Low Low Zio Dee Pro Fac Ext Traps Triggered 8 | . . . . . 3 . 1 . . . . . 3 1 Indirectly . | . . . . . . . . . . . . . . . Trap Hack Attempts 1 | . . . . . . . . . . . . . 1 . Triggered . | . . . . . . . . . . . . . . . Disarmed 1 | . . . . . . . . . . . . . 1 . Reprogrammed . | . . . . . . . . . . . . . . . Reused . | . . . . . . . . . . . . . . . Traps Extracted . | . . . . . . . . . . . . . . . Installed . | . . . . . . . . . . . . . . . Triggered . | . . . . . . . . . . . . . . . Machines | -11 -10 -10 -9 -9 -6 -6 -6 -6 -6 -6 -6 -5 -5 -5 ---------- Run | Yrd Mat Sub Rec Scr Fac Was Fac Low Low Zio Dee Pro Fac Ext Machines Disabled 10 | . . 3 . . 1 . 1 . . 3 2 . . . Max in Single Turn 2 | . . 2 . . 1 . 1 . . 1 1 . . . Garrison Access 3 | . . . . . . . 1 . . . . . 2 . Machines Repaired . | . . . . . . . . . . . . . . . Machines Dismantled 3 | . . . . . . . . . . 3 . . . . Machines Sabotaged . | . . . . . . . . . . . . . . . Overloaded Fab Kills 1 | . . . . . . . . . . . . . 1 . Hacking | -11 -10 -10 -9 -9 -6 -6 -6 -6 -6 -6 -6 -5 -5 -5 --------- Run | Yrd Mat Sub Rec Scr Fac Was Fac Low Low Zio Dee Pro Fac Ext Machines Accessed 108 | . 9 3 9 3 31 . 24 . . 1 . . 24 4 Terminals 49 | . 6 . 6 . 14 . 9 . . . . . 10 4 Fabricators 11 | . . . . . 4 . 4 . . . . . 3 . Repair Stations 8 | . 1 . . . 4 . 2 . . . . . 1 . Recycling Units 21 | . 2 . 3 . 5 . 5 . . . . . 6 . Scanalyzers 6 | . . . . . 3 . 2 . . . . . 1 . Garrison Access 6 | . . . . . 1 . 2 . . . . . 3 . Total Hacks 295 | . 30 3 26 12 88 . 60 . . 6 . . 62 8 Successful 152 | . 13 3 10 12 35 . 29 . . 6 . . 41 3 Failed 141 | . 16 . 16 . 52 . 31 . . . . . 21 5 Catastrophic 23 | . 1 . 2 . 11 . 7 . . . . . 1 1 Database Lockouts 2 | . 1 . . . 1 . . . . . . . . . Manual 142 | . 22 . 16 . 36 . 31 . . 1 . . 36 . Terminals 148 | . 22 . 18 . 37 . 27 . . . . . 36 8 Fabricators 31 | . . . . . 14 . 12 . . . . . 5 . Repair Stations 20 | . 2 . . . 13 . 3 . . . . . 2 . Recycling Units 44 | . 6 . 8 . 7 . 9 . . . . . 14 . Scanalyzers 24 | . . . . . 15 . 7 . . . . . 2 . Garrison Access 7 | . . . . . 2 . 2 . . . . . 3 . Terminal Hacks 54 | . 2 3 3 12 7 . 4 . . 6 . . 14 3 Record 11 | . . . . 11 . . . . . . . . . . Part Schematic 15 | . . . 1 . 1 . 3 . . 6 . . 4 . Robot Schematic 1 | . . . 1 . . . . . . . . . . . Robot Analysis 5 | . 1 . 1 . 1 . . . . . . . 2 . Prototype ID Bank 1 | . . . . . 1 . . . . . . . . . Open Door 5 | . . 1 . . . . . . . . . . 1 3 Branch Access Points 2 | . . . . . 1 . . . . . . . 1 . Machine Index 1 | . . . . . . . . . . . . . 1 . Terminal Index 3 | . . . . . 1 . 1 . . . . . 1 . Fabricator Index 1 | . . . . . . . . . . . . . 1 . Alert Level 1 | . . . . . . . . . . . . . 1 . Unreport Threat 3 | . . . . . 1 . . . . . . . 2 . Hauler Manifests 1 | . 1 . . . . . . . . . . . . . Zone Layout 1 | . . . . . 1 . . . . . . . . . Proto ID Catalog 2 | . . 1 . 1 . . . . . . . . . . Release Object 1 | . . 1 . . . . . . . . . . . . Fabricator Hacks 16 | . . . . . 6 . 6 . . . . . 4 . Network Status 1 | . . . . . . . 1 . . . . . . . Load Schematic 9 | . . . . . 4 . 3 . . . . . 2 . Build 6 | . . . . . 2 . 2 . . . . . 2 . Repair Station Hacks 13 | . 2 . . . 6 . 3 . . . . . 2 . Scan Component 6 | . 1 . . . 3 . 1 . . . . . 1 . Repair 6 | . 1 . . . 3 . 1 . . . . . 1 . Refit 1 | . . . . . . . 1 . . . . . . . Recycling Unit Hacks 12 | . 1 . 2 . 1 . 3 . . . . . 5 . Retrieve Components 12 | . 1 . 2 . 1 . 3 . . . . . 5 . Scanalyzer 16 | . . . . . 9 . 5 . . . . . 2 . Insert Component 10 | . . . . . 6 . 3 . . . . . 1 . Analyze 6 | . . . . . 3 . 2 . . . . . 1 . Garrison Access Hacks 3 | . . . . . . . 1 . . . . . 2 . Seal Access 3 | . . . . . . . 1 . . . . . 2 . Unauthorized Hacks 38 | . 8 . 5 . 6 . 7 . . . . . 12 . Terminals 20 | . 6 . 2 . 4 . 3 . . . . . 5 . Track 3 | . . . . . 1 . . . . . . . 2 . Assimilate 1 | . 1 . . . . . . . . . . . . . Botnet 8 | . . . 2 . 2 . 2 . . . . . 2 . Disrupt 1 | . . . . . . . . . . . . . 1 . Operators 2 | . . . . . 1 . 1 . . . . . . . Skim 5 | . 5 . . . . . . . . . . . . . Fabricators 1 | . . . . . . . . . . . . . 1 . Overload 1 | . . . . . . . . . . . . . 1 . Repair Stations . | . . . . . . . . . . . . . . . Recycling Units 17 | . 2 . 3 . 2 . 4 . . . . . 6 . Tunnel 5 | . 2 . 3 . . . . . . . . . . . Fedlink 12 | . . . . . 2 . 4 . . . . . 6 . Scanalyzers . | . . . . . . . . . . . . . . . Garrison Access . | . . . . . . . . . . . . . . . Data Cores Recovered 2 | . 1 . . . . . . . . . . . 1 . Used . | . . . . . . . . . . . . . . . Hacking Detections 83 | . 6 . 7 . 29 . 20 . . . . . 18 3 Full Trace Events 17 | . . . 1 . 6 . 7 . . . . . 2 1 Feedback Events . | . . . . . . . . . . . . . . . Feedback Blocked . | . . . . . . . . . . . . . . . Robot Schematics Acquired 1 | . . . 1 . . . . . . . . . . . Robots Built . | . . . . . . . . . . . . . . . Authchips . | . . . . . . . . . . . . . . . Time . | . . . . . . . . . . . . . . . Total Robot Build Rating . | . . . . . . . . . . . . . . . Part Schematics Acquired 59 | . . . 1 . 13 . 13 3 2 14 1 1 9 2 Parts Built 6 | . . . . . 2 . 2 . . . . . 2 . Authchips . | . . . . . . . . . . . . . . . Time 471 | . . . . . 89 . 142 . . . . . 240 . Total Part Build Rating 32 | . . . . . 9 . 10 . . . . . 13 . Parts Repaired 6 | . 1 . . . 3 . 1 . . . . . 1 . Time 278 | . 26 . . . 205 . 25 . . . . . 22 . Parts Recycled . | . . . . . . . . . . . . . . . Recycled Matter . | . . . . . . . . . . . . . . . Retrieved Matter . | . . . . . . . . . . . . . . . Retrieved Components 31 | . 10 . 6 . 1 . 4 . . . . . 10 . Parts Scanalyzed 6 | . . . . . 4 . 1 . . . . . 1 . Part Schematics Acquired 3 | . . . . . 2 . 1 . . . . . . . Parts Damaged 1 | . . . . . 1 . . . . . . . . . Bothacking | -11 -10 -10 -9 -9 -6 -6 -6 -6 -6 -6 -6 -5 -5 -5 ------------ Run | Yrd Mat Sub Rec Scr Fac Was Fac Low Low Zio Dee Pro Fac Ext Used RIF Installer . | . . . . . . . . . . . . . . . Robots Hacked 6 | . . . . 2 2 . . . . 2 . . . . Non-combat 2 | . . . . . 2 . . . . . . . . . Combat 4 | . . . . 2 . . . . . 2 . . . . Robot Hacks Applied 6 | . . . . 2 2 . . . . 2 . . . . parse_system 4 | . . . . 2 . . . . . 2 . . . . find_chute 1 | . . . . . 1 . . . . . . . . . find_recycling 1 | . . . . . 1 . . . . . . . . . Relay Couplers Released 10 | . . . . . 8 . . . . . . . 2 . Machine Destruction 2 | . . . . . . . . . . . . . 2 . Programmers 8 | . . . . . 8 . . . . . . . . . Fabnet Peak Effective % . | . . . . . . . . . . . . . . . Robots Rewired 1 | . . . . . . . . . . . . . 1 . Allies Hacked 3 | . . . . . . . . . . . . . 1 2 Hacks Repelled . | . . . . . . . . . . . . . . . Allies | -11 -10 -10 -9 -9 -6 -6 -6 -6 -6 -6 -6 -5 -5 -5 -------- Run | Yrd Mat Sub Rec Scr Fac Was Fac Low Low Zio Dee Pro Fac Ext Total Allies 6 | . 1 . . . . . . . . 2 . . 1 2 Largest Group 2 | . 1 . . . . . . . . 2 2 . 1 2 Highest-Rated Group 192 | . 10 . . . . . . . . 192 192 . 57 40 Highest-Rated Ally 96 | . 10 . . . . . . . . 96 96 . 57 20 Total Orders . | . . . . . . . . . . . . . . . Ally Attacks 43 | . . . . . . . . . . . 40 . . 3 Total Damage 826 | . . . . . . . . . . . 783 . . 43 Kills 9 | . . . . . . . . . . . 9 . . . Allies Corrupted . | . . . . . . . . . . . . . . . Allies Melted 1 | . . . . . . . . . . . 1 . . . Intel | -11 -10 -10 -9 -9 -6 -6 -6 -6 -6 -6 -6 -5 -5 -5 ------- Run | Yrd Mat Sub Rec Scr Fac Was Fac Low Low Zio Dee Pro Fac Ext Active Infowar (turns) 12338 | 13 1483 1746 1482 . 2712 33 663 189 149 1196 960 172 853 687 Optics 3755 | . . . . . . . . . . 1166 960 172 853 604 IFF 777 | . . . . . . . . 182 149 27 . 143 142 134 Terrain 1433 | . . 17 . . 1416 . . . . . . . . . Structural 2936 | . . . . . 726 33 473 124 145 187 63 172 343 670 Seismic 8968 | 13 1483 1729 1482 . 2678 33 663 7 . . . 28 538 314 Jamming 414 | . . . . . . . . . . . . . 414 . ECM 19 | . . . . . . . . . . . . . 19 . Robot Analysis Total 5 | . 1 . 1 . 1 . . . . . . . 2 . Derelict Logs Recovered 9 | . . 1 . 4 . . . . 1 2 . 1 . . Drone Launches . | . . . . . . . . . . . . . . . Drone Recoveries . | . . . . . . . . . . . . . . . Exploration | -11 -10 -10 -9 -9 -6 -6 -6 -6 -6 -6 -6 -5 -5 -5 ------------- Run | Yrd Mat Sub Rec Scr Fac Was Fac Low Low Zio Dee Pro Fac Ext Turns Passed 19461 | 25 1963 1936 2131 5690 2814 33 663 189 149 1196 960 172 853 687 Spaces Moved 13643 | 13 713 554 649 1735 2666 76 1515 649 464 1066 707 313 1652 871 Core 1 | . . . . . . . . . . . . . 1 . Treads 4292 | . 643 554 649 1735 113 . . . . 340 252 . . 6 Legs 83 | 13 70 . . . . . . . . . . . . . Wheels 726 | . . . . . 726 . . . . . . . . . Hover . | . . . . . . . . . . . . . . . Flight 8541 | . . . . . 1827 76 1515 649 464 726 455 313 1651 865 Fastest Speed 11 | 120 120 320 320 320 27 27 25 25 25 25 25 27 11 23 Average Speed 119 | 120 210 320 320 324 76 27 26 25 25 100 102 27 24 25 Slowest Speed 450 | 120 320 320 320 325 405 27 32 25 25 240 240 99 450 240 Overloaded Moves 5 | . . . . . . . . . . . . . 5 . Propulsion Burnouts . | . . . . . . . . . . . . . . . Robots Hopped 43 | . . . . . 6 4 4 1 . . 4 . 15 9 Potential Cave-ins 1 | . . . . . . . . . . . 1 . . . Cave-ins Triggered . | . . . . . . . . . . . . . . . Exploration Rate (%) 66 | 3 96 28 99 86 73 72 46 85 68 86 77 64 45 62 Regions Visited 14 Branch Regions 9 Pre-discovered Areas 11 | . 2 . 3 1 1 . . . . 3 . 1 . . Known Exits Taken 5 | . 1 1 . . . . 1 . . . . 1 1 . Unknown Exits Taken 7 | 1 . . 1 1 . . . 1 1 1 1 . . . Scrap Searched 20 | . . 4 . 5 . . . 3 3 5 . . . . Spaces Dug 174 | . 6 11 . . 61 . 29 3 4 . 13 5 42 . Terrain Destroyed 358 | . 15 18 . . 94 . 29 3 4 . 56 5 92 42 Melee 124 | . . . . . 42 . 24 3 4 . 5 4 42 . Projectile 22 | . 1 . . . 4 . 5 . . . 8 1 3 . AOE 208 | . 14 18 . . 48 . . . . . 43 . 47 38 Terrain Rammed . | . . . . . . . . . . . . . . . Walls Destroyed . | . . . . . . . . . . . . . . . Machines Disabled . | . . . . . . . . . . . . . . . Actions | -11 -10 -10 -9 -9 -6 -6 -6 -6 -6 -6 -6 -5 -5 -5 --------- Run | Yrd Mat Sub Rec Scr Fac Was Fac Low Low Zio Dee Pro Fac Ext Total 15855 | 18 1023 661 679 1801 3182 83 1712 667 487 1134 854 383 1918 1253 Wait 1043 | . 182 32 7 35 173 9 112 11 18 11 42 57 59 295 Move 13549 | 12 712 553 648 1734 2654 69 1506 646 463 1065 698 312 1623 854 Hop 38 | . . . . . 6 2 4 1 . . 4 . 13 8 Pick Up 112 | 2 12 8 5 15 27 2 5 1 . 5 10 1 15 4 Fast Attach 78 | 1 1 3 1 1 14 1 12 . . 6 7 . 20 11 Attach 74 | . 2 2 . 1 28 . 7 . . 2 10 1 11 10 Detach 40 | . 1 1 1 2 13 . 7 . . 4 2 . 2 7 Swap 142 | 1 15 19 4 4 45 . 12 3 2 4 15 3 14 1 Drop 129 | . 7 11 1 7 46 . 9 2 . 8 8 1 22 7 Fire 303 | 2 90 32 11 . 51 . 8 . . . 45 3 36 25 Melee 274 | . . . . 2 124 . 30 3 4 2 13 5 63 28 Ram . | . . . . . . . . . . . . . . . Kick . | . . . . . . . . . . . . . . . Crush 2 | . 1 . 1 . . . . . . . . . . . Escape Stasis 33 | . . . . . . . . . . . . . 30 3 Rewire 6 | . . . . . . . . . . . . . 6 . Trap 1 | . . . . . . . . . . . . . 1 . Miscellaneous 31 | . . . . . 1 . . . . 27 . . 3 . Route ------- -11/Scrapyard -10/Materials (discovered 5 exits: *Mat x3 / [*Min] / *Sub) -10/Subcaves -9/Recycling (discovered 2 exits: [*Fac] / *Scr) -9/Scraptown (discovered 2 exits: *Fac x2) -6/Factory (discovered 2 exits: *Low x2) -6/Waste -6/Factory (discovered 2 exits: *Fac / *Low) -6/Lower Caves -6/Lower Caves (discovered 2 exits: *Fac / *Zio) -6/Zion (discovered 2 exits: [*Dee] / [*Pro]) -6/Deep Caves -5/Proximity Caves -5/Factory (discovered 7 exits: *Fac x3 / Upp x2 / *Ext x2) -5/Extension (discovered 2 exits: *Fac / [*Cet]) History --------- Turn | Location | Event 9 | -11/Scrapyard | Discovered new exit (range 3) 26 | -11/Scrapyard | Entered Materials 306 | -10/Materials | Build established: Mutant 317 | -10/Materials | Discovered new exit (range 15) 465 | -10/Materials | Repaired Lgt. Armor Plating 572 | -10/Materials | Discovered new exit (range 16) 867 | -10/Materials | Discovered new exit (range 13) 889 | -10/Materials | Central database locked down 908 | -10/Materials | Learned Storage garrison access intel 963 | -10/Materials | Loaded intel: 21 trap records 1007 | -10/Materials | Identified exit to Materials 1007 | -10/Materials | Identified exit to Subcaves 1039 | -10/Materials | Learned Materials trap positions 1062 | -10/Materials | Learned Storage emergency access door positions 1102 | -10/Materials | Learned Storage trap positions 1138 | -10/Materials | Learned Materials trap positions 1186 | -10/Materials | Learned Storage stockpile data 1989 | -10/Materials | Entered Subcaves 1990 | -10/Subcaves | Approached by a straggling Scientist 1990 | -10/Subcaves | Identified exit to Recycling 2091 | -10/Subcaves | Found SUBCON Basin 2631 | -10/Subcaves | Core integrity fell below 50% 3127 | -10/Subcaves | Visited 4L-MR0's lab 3401 | -10/Subcaves | Shifting Twisted Machinery released Battle Cannon 3767 | -10/Subcaves | Shifting Twisted Machinery released Flamer 3925 | -10/Subcaves | Entered Recycling 4295 | -9/Recycling | Scanned before Scraplab entrance 4340 | -9/Recycling | Entered Scraplab 4966 | -9/Recycling | Discovered new exit (range 15) 6053 | -9/Recycling | Discovered new exit (range 2) 6056 | -9/Recycling | Entered Scraptown 6587 | -9/Scraptown | Scanned Subdweller tech in exchange for log data 6597 | -9/Scraptown | Learned location of Quarantine (-3) 6600 | -9/Scraptown | Learned Factory stockpile data 6603 | -9/Scraptown | Learned Research interactive machine intel 7089 | -9/Scraptown | Discovered new exit (range 13) 7292 | -9/Scraptown | Visited Assassins FH 7441 | -9/Scraptown | Visited Fellowship of the Rings 7477 | -9/Scraptown | Visited The Evicted 7503 | -9/Scraptown | Visited Scrapoid Research Area 8139 | -9/Scraptown | Visited UFD Registry 8139 | -9/Scraptown | Registered with UFD as "Technobucket" 8214 | -9/Scraptown | Visited Science Guys 8331 | -9/Scraptown | Visited LU-1G1's Boring Crew 8376 | -9/Scraptown | Visited Chapter 10 8500 | -9/Scraptown | Visited Derelict Rescue Squad 8519 | -9/Scraptown | Found DRS Beacon 8575 | -9/Scraptown | Visited Science Testing Area 8605 | -9/Scraptown | Visited Modified Component R&D 8663 | -9/Scraptown | Visited Botcube Research 8715 | -9/Scraptown | Visited Infowarlord's Domain 8738 | -9/Scraptown | Found Spectral Analyzer 8807 | -9/Scraptown | Visited Observation Area 9080 | -9/Scraptown | Delivered Scrap Shield to a Scientist 11048 | -9/Scraptown | Visited Cyclists 11071 | -9/Scraptown | Entered Cyclist Reading Room 11548 | -9/Scraptown | Met Optimus 11548 | -9/Scraptown | Accepted into 0bPrime 11721 | -9/Scraptown | Civil war broke out across Scraptown 11733 | -9/Scraptown | Discovered new exit (range 3) 11746 | -9/Scraptown | Entered Factory 11746 | -6/Factory | Evolved 8 slots: Propulsion x3, Utility x5 11747 | -6/Factory | Identified exit to Lower Caves 11965 | -6/Factory | Loaded intel: 8 recycling unit locations 12357 | -6/Factory | Build established: Scavenger-Mutant 12818 | -6/Factory | Discovered exit to Lower Caves (range 14) 13369 | -6/Factory | Repaired Med. Reactive Plating? 13877 | -6/Factory | Tech Extrapolator generated special schematic: Deep Structural Scanner 13929 | -6/Factory | Learned location of Protoforge (-3) 13978 | -6/Factory | Spotted B-75 Beast 14055 | -6/Factory | Fabricated Deep Structural Scanner? 14083 | -6/Factory | Build established: Sprinter 14412 | -6/Factory | Repaired Broken Spectral Analyzer? 14516 | -6/Factory | Repaired Nuclear Pulse Thruster 14529 | -6/Factory | Central database locked down 14533 | -6/Factory | Fabricated Imp. Hacking Suite? 14544 | -6/Factory | Build established: Hacker-Sprinter 14546 | -6/Factory | Search patrols dispatched 14555 | -6/Factory | Tech Extrapolator generated special schematic: Energy Deflector 14560 | -6/Factory | Sucked down chute 14560 | -6/Factory | Entered Waste 14562 | -6/Waste | Spotted C-40 Crusher 14563 | -6/Waste | Spotted C-40 Crusher 14570 | -6/Waste | Spotted C-40 Crusher 14574 | -6/Waste | Spotted C-40 Crusher 14575 | -6/Waste | EMP discharged 14575 | -6/Waste | System corruption reached 10% 14576 | -6/Waste | Spotted C-40 Crusher 14582 | -6/Waste | Spotted C-40 Crusher 14591 | -6/Waste | Discovered new exit (range 10) 14593 | -6/Waste | Entered Factory 14693 | -6/Factory | Tech Extrapolator generated special schematic: Machine Rigger 14938 | -6/Factory | Fabricated Imp. Hacking Suite? 14963 | -6/Factory | Loaded intel: 8 recycling unit locations 15016 | -6/Factory | Discovered new exit (range 10) 15026 | -6/Factory | Identified exit to Factory 15151 | -6/Factory | Discovered exit to Lower Caves (range 12) 15179 | -6/Factory | Repaired Nuclear Pulse Thruster? 15221 | -6/Factory | Fabricated Imp. System Shield? 15256 | -6/Factory | Entered Lower Caves 15258 | -6/Lower Caves | UFD Scientist delivered a prototype 15289 | -6/Lower Caves | Entered a destroyed Warlord outpost 15296 | -6/Lower Caves | Found Prototype Protection 15432 | -6/Lower Caves | Discovered new exit (range 17) 15445 | -6/Lower Caves | Entered another Lower Caves area 15453 | -6/Lower Caves | Discovered exit to Factory (range 16) 15490 | -6/Lower Caves | Encountered a Warlord checkpoint 15495 | -6/Lower Caves | Learned 12 Factory zone layouts 15500 | -6/Lower Caves | Discovered new exit (range 17) 15594 | -6/Lower Caves | Entered Zion 15604 | -6/Zion | System corruption cleaned by Quarantine Array 15614 | -6/Zion | Discovered new exit (range 13) 15620 | -6/Zion | Found Prototype Processor 15621 | -6/Zion | Identified Exp. Core Analyzer 15674 | -6/Zion | Learned 4 Factory zone layouts 15692 | -6/Zion | Learned location of 1 exit from Lower Caves 15703 | -6/Zion | Given the Hacking Drone Bay 15747 | -6/Zion | Given A8's code to call for help 15772 | -6/Zion | Identified Enh. Scrap Shield 15890 | -6/Zion | Visited the Megawrench Repair Shop 15890 | -6/Zion | Megawrench repaired 9 parts 16064 | -6/Zion | Discovered new exit (range 3) 16064 | -6/Zion | Saw the warning signs outside the Deep Caves entrance 16065 | -6/Zion | Build established: Hacker-Mutant 16093 | -6/Zion | Enhanced Grunt warped into view, answering call for help 16093 | -6/Zion | Enhanced Grunt warped into view, answering call for help 16546 | -6/Zion | Turned away by Imprinter 16790 | -6/Zion | Entered Deep Caves 16790 | -6/Deep Caves | Accompanied by 2 allies 17013 | -6/Deep Caves | Attacked by Z-Imprinter 17063 | -6/Deep Caves | Destroyed Z-Imprinter 17090 | -6/Deep Caves | Lost 3 parts (1n1u1w) 17146 | -6/Deep Caves | Z-Facility disabled 17181 | -6/Deep Caves | Build established: Mutant 17300 | -6/Deep Caves | Found Prototype Protection 17300 | -6/Deep Caves | Identified Zio. Weapon Casing 17505 | -6/Deep Caves | Core integrity fell below 50% 17509 | -6/Deep Caves | Found Exp. Thermal Shield 17575 | -6/Deep Caves | Lost 7 parts (1p2n4u) 17654 | -6/Deep Caves | Discovered new exit (range 8) 17654 | -6/Deep Caves | Found Surveybot 24 Scanner 17657 | -6/Deep Caves | Found Surveybot 24 Chip 17721 | -6/Deep Caves | Spotted AG-06027 17750 | -6/Deep Caves | Entered Proximity Caves 17800 | -5/Proximity Caves | Build established: Hacker-Sprinter 17858 | -5/Proximity Caves | Tech Extrapolator generated special schematic: Heat Bomb Trap 17918 | -5/Proximity Caves | Discovered exit to Factory (range 15) 17922 | -5/Proximity Caves | Entered Factory 17922 | -5/Factory | Evolved 2 slots: Utility x2 17923 | -5/Factory | Identified exit to Upper Caves 17923 | -5/Factory | Identified exit to Factory 17939 | -5/Factory | Identified exit to Extension 17953 | -5/Factory | Loaded intel: 8 recycling unit locations 17974 | -5/Factory | Found Powered Armor 18242 | -5/Factory | Repaired Powered Armor 18324 | -5/Factory | Spotted B-75 Beast 18374 | -5/Factory | Discovered exit to Factory (range 7) 18515 | -5/Factory | Fabricated Machine Rigger? 18531 | -5/Factory | Fabricated Adv. System Shield? 18562 | -5/Factory | Discovered exit to Factory (range 22) 18613 | -5/Factory | Lost 3 parts (2u1w) 18649 | -5/Factory | Found Hvy. Reflective Plating 18663 | -5/Factory | Lost 4 parts (1p2u1w) 18665 | -5/Factory | Destroyed 8 combat bots 18668 | -5/Factory | Tech Extrapolator generated special schematic: Active Sensor Spoofer 18744 | -5/Factory | System corruption reached 10% 18763 | -5/Factory | Core integrity fell below 50% 18775 | -5/Factory | Entered Extension 18786 | -5/Extension | Lost 3 parts (1p2u) 19025 | -5/Extension | Disrupted transfer network 19034 | -5/Extension | Spotted B-75 Beast 19270 | -5/Extension | Lost 7 parts (1p1n3u2w) 19371 | -5/Extension | Spotted B-75 Beast 19378 | -5/Extension | Core integrity fell below 20% 19388 | -5/Extension | Rescued a captive Derelict 19388 | -5/Extension | Rescued a captive Derelict 19393 | -5/Extension | Rescued a captive Derelict 19397 | -5/Extension | Rescued a captive Derelict 19454 | -5/Extension | Discovered exit to Factory (range 10) 19455 | -5/Extension | Discovered new exit (range 6) 19462 | -5/Extension | Destroyed by S-27 Virus with Autogun Last Messages --------------- 19424_ Field strength at 31. 19425_ Stasis field depleted. 19428_ 8G-C68(b) reactivates. 19428_ Cld. Nuclear Pulse Thruster destroyed. 19429_ Penetrated by Slug. 19429_ P-70 Sage hacks 8G-C68(b), rebooting. 19432_ Cld. Nuclear Pulse Thruster destroyed. 19432_ Slug penetrates Wall. 19437_ Penetrated by Slug. 19442_ 5ZD2L/SR#GWJKPVP7Z#PN<68MC&#LF|HVEQBR%QZ 19443_ Tech Extrapolator generates new schematic "Mak. Core Shielding". Influences: Core Shielding, Imp. Core Shielding. 19447_ Y-64 Sentinel springs to life. 19454_ EXIT=FOUND: FACTORY 19455_ EXIT=FOUND 19455_ T-07 Excavator enters Transfer Station. 19457_ K-01 Serf enters Transfer Station. 19461_ K-01 Serf exits Transfer Station. 19461_ C-30 ARC bursts open, deploying its payload. 19461_ S-27 Virus unfolds itself. Map ----- +----------------------------------------------------+ | ??????? + + = =##? | | ??????? ############### ##? | | ??????? ############### ##? | | ????????????????????#####"#####? | | ????????????????????## #####? | | ?????????## ? ###### ##???? | | ?????????## ###### ##???? | | ????????? ##???? | | ?????????## ### ##???? | | ?????????## ??? ### ##???? | | ?????????????????## ##???? | | ?????????????????######## ##???? | | ?????????????????######## ##???? | | ???????????????????????## ##???? | | ???????????????????????## ##???? | | ???????????????????????## ##???? | | ???????????????????????## ##???? | | ???????????????????????## ##???? | | ???????????????????????## ##???? | | ???????????????????????## ##???? | | ???????????????????????## ##???? | | ???????????????????????## ##???? | | ???????????????????????## ##???? | | ???????????????????????## ##???? | | ???????????????????????##!##???? | | ???????????????????????##@##???? | | ???????????????????????"" "" ##? | | ????????????????????? " " ##? | | ??????????????????? ] # | | ????????????????? = !